Cogmind - Beta 13 @@@ ROGUE MODE // 2024.04.05 @ 14:44:32 Player: Olafz Result: Destroyed by A1-56N(R) with Subdweller Shrapnel Launcher Performance ------------- Evolutions (0) 0 Regions Visited (3) 600 Robots Destroyed (9) 45 Value Destroyed (277) 277 Prototype IDs (10) 200 Alien Tech Used (0) 0 Bonus (-41) -41 TOTAL SCORE: 1081 Bonus ------- Friendly Fire -41 Cogmind --------- Core Integrity 0/250 Matter 298/300 Energy 249/250 System Corruption 0% Temperature Cool (0) Movement Core (450) Ox8 Location -10/Subcaves Parts ------- > --- POWER (1) -------- Ion Engine > --- PROPULSION (2) --- Wheel > --- UTILITY (2) ------ Disposable Heat Sink Large Storage Unit > --- WEAPON (2) ------- (None) > --- INVENTORY (15) --- Light Ion Engine Subdweller Power Source Wheel Small Storage Unit EM Pulse Gun Small Laser Peak State ------------ > --- POWER ------------ Ion Engine > --- PROPULSION ------- Light Treads Light Treads > --- UTILITY ---------- Disposable Heat Sink Large Storage Unit > --- WEAPON ----------- Makeshift Laser Multitool > --- INVENTORY -------- Light Ion Engine Subdweller Power Source Small Storage Unit EM Pulse Gun Small Laser Subdweller Machine Gun Subdweller Machine Gun [Rating: 13] Favorites ----------- Power Ion Engine Engine Ion Engine Propulsion Light Treads Treads Light Treads Wheel Wheel Utility Large Storage Unit Device Disposable Heat Sink Storage Large Storage Unit Weapon Subdweller Machine Gun Energy Gun EM Pulse Gun Ballistic Gun Subdweller Machine Gun Special Weapon Multitool Build | -11 -10 -10 -10 ------- Run | Yrd Mat Min Sub Slots Evolved . | . . . . Power . | . . . . Propulsion . | . . . . Utility . | . . . . Weapon . | . . . . Parts Attached 19 | 7 1 . 11 Power 2 | 2 . . . Engine 2 | 2 . . . Core . | . . . . Reactor . | . . . . Propulsion 4 | 2 . . 2 Treads 2 | 2 . . . Leg . | . . . . Wheel 2 | . . . 2 Hover . | . . . . Flight . | . . . . Utility 3 | 1 1 . 1 Device 1 | . . . 1 Storage 2 | 1 1 . . Processor . | . . . . Hackware . | . . . . Protection . | . . . . Artifact . | . . . . Weapon 10 | 2 . . 8 Energy Gun 5 | 2 . . 3 Energy Cannon . | . . . . Ballistic Gun 4 | . . . 4 Ballistic Cannon . | . . . . Launcher . | . . . . Special Weapon 1 | . . . 1 Impact Weapon . | . . . . Slashing Weapon . | . . . . Piercing Weapon . | . . . . Special Melee Weapon . | . . . . Unidentified Prototypes . | . . . . Parts Lost 6 | . . . 6 Power . | . . . . Propulsion 2 | . . . 2 Utility . | . . . . Weapon 4 | . . . 4 Highest Loss Streak 3 | . . . 3 To Critical Strikes . | . . . . Average Slot Usage (%) 90 | . 85 85 92 Engine 14 | . 14 14 14 Treads 24 | . 28 28 23 Wheel 2 | . . . 3 Device 9 | . . . 12 Storage 14 | . 14 14 14 Energy Gun 16 | . 28 28 11 Ballistic Gun 5 | . . . 8 Special Weapon 2 | . . . 3 Naked Turns . | . . . . Heaviest Build 34 | 13 28 28 34 Greatest Support 40 | 40 40 40 40 Greatest Overweight (x) 2 | . . . 2 Average Overweight (x) . | . . . . Largest Inventory Capacity 15 | 8 15 15 15 Average Capacity 14 | 7 13 15 15 Most Carried 7 | 1 2 2 7 Average Carried 4 | . 1 2 5 Final Capacity 15 | 8 15 15 15 Final Carried 6 | 1 2 2 6 Class Distribution -------------------- 100% | Mutant Dominant Class ---------------- Mutant | -10/Materials Mutant | -10/Mines Mutant | -10/Subcaves Resources | -11 -10 -10 -10 ----------- Run | Yrd Mat Min Sub Matter Collected 609 | 192 . 88 329 Remotely . | . . . . Salvage Created 313 | . . 43 270 Parts 20 | . . 2 18 Haulers Intercepted . | . . . . Recyclers Shooed . | . . . . Parts Field Recycled . | . . . . Retrieved Matter . | . . . . Parts Self-Destructed 4 | . . . 4 Prevented . | . . . . Kills | -11 -10 -10 -10 ------- Run | Yrd Mat Min Sub Combat Hostiles Destroyed 9 | . . 3 6 Guns 9 | . . 3 6 Classes Destroyed 4 | . . 1 3 Swarmer 3 | . . 3 . Grunt 1 | . . . 1 Artisan 1 | . . . 1 Subdweller 5 | . . . 5 Best Kill Streak 3 | . . 3 1 Combat Bots Only 3 | . . 3 1 Max Kills in Single Turn 1 | . . 1 1 Gunslinging . | . . . . Exploded . | . . . . Melee . | . . . . Uniques/NPCs Destroyed . | . . . . Combat | -11 -10 -10 -10 -------- Run | Yrd Mat Min Sub Hostile Shots Fired 62 | . . 29 33 Missed 15 | . . 10 5 Damage Taken 956 | . . 144 812 Core 265 | . . 44 221 Absorbed by Shields . | . . . . Core Remaining (%) 100 | 100 . . . Volleys Fired 60 | . 1 9 50 Largest 2 | . 1 2 2 Hottest 90 | . 40 80 90 Shots Fired 105 | . 1 18 86 Gun 88 | . 1 18 69 Cannon . | . . . . Launcher . | . . . . Special 17 | . . . 17 Kinetic 38 | . . . 38 Thermal 51 | . . 9 42 Explosive . | . . . . Electromagnetic 16 | . 1 9 6 Robot Hit Streak 7 | . . 3 7 Robot Miss Streak 4 | . 1 4 3 Penetration Max . | . . . . Secondary Targets 2 | . . 2 . Max Gunslinging Chain 1 | . . 1 . Shots Hit Robots 32 | . . 8 24 Core Hits 14 | . . 3 11 Critical Kills . | . . . . Critical Parts Destroyed . | . . . . Critical Strikes 1 | . . 1 . Corrupt 1 | . . 1 . Melee Attacks . | . . . . Impact . | . . . . Slashing . | . . . . Piercing . | . . . . Sneak Attacks . | . . . . Combat Hostiles . | . . . . Follow-up Attacks . | . . . . Damage Inflicted 543 | . . 173 370 Guns 470 | . . 100 370 Cannons . | . . . . Explosions 73 | . . 73 . Melee . | . . . . Ramming . | . . . . Kinetic 217 | . . . 217 Thermal 214 | . . 118 96 Explosive . | . . . . Electromagnetic 112 | . . 55 57 Impact . | . . . . Slashing . | . . . . Piercing . | . . . . Highest Corruption . | . . . . Average Corruption . | . . . . Corruption Purged . | . . . . Corruption Blocked . | . . . . Overload Shots . | . . . . Overflow Damage 13 | . . 13 . Projectiles . | . . . . Explosions 13 | . . 13 . Melee . | . . . . Knockbacks . | . . . . Impact . | . . . . Kinetic . | . . . . Secondary . | . . . . Self-Inflicted Damage . | . . . . Shots . | . . . . Rammed . | . . . . Targets Rammed . | . . . . Kicked . | . . . . Crushed . | . . . . Highest Temperature 162 | . . 162 . Average Temperature 82 | . . 82 . Received Heat Transfer 99 | . . . 99 Siege Activations . | . . . . Robots Corrupted . | . . . . Combat Hostiles . | . . . . Parts Fried . | . . . . Impact Corruptions . | . . . . Robots Melted . | . . . . Combat Hostiles . | . . . . Parts Melted . | . . . . Heat Transferred 399 | . . 200 199 Parts Sabotaged . | . . . . Parts Stolen . | . . . . Parts Stripped . | . . . . Power Chain Reactions 1 | . . 1 . Alert | -11 -10 -10 -10 ------- Run | Yrd Mat Min Sub Peak Influence 90 | . . 90 . Initial . | . . . . Average 59 | . . 86 . Maximum Alert Level . | . . . . Low Security (%) 100 | 100 100 100 . Level 1 . | . . . . Level 2 . | . . . . Level 3 . | . . . . Level 4 . | . . . . Level 5 . | . . . . High Security . | . . . . Max Security . | . . . . Squads Dispatched 2 | . 2 . . Investigation 1 | . 1 . . Extermination . | . . . . Reinforcement 1 | . 1 . . Assault . | . . . . Garrison . | . . . . Intercept . | . . . . Searches Triggered . | . . . . Construction Impeded . | . . . . Haulers Reinforced . | . . . . Active Scanning Responses . | . . . . Cargo Convoy Interrupts . | . . . . Stealth | -11 -10 -10 -10 --------- Run | Yrd Mat Min Sub Distress Signals . | . . . . Communications Jammed . | . . . . Distress Signals . | . . . . Times Spotted 12 | . 1 3 8 Peak Tracking Total 3 | . 1 3 2 Tactical Retreats . | . . . . Traps | -11 -10 -10 -10 ------- Run | Yrd Mat Min Sub Traps Triggered . | . . . . Indirectly . | . . . . Trap Hack Attempts . | . . . . Triggered . | . . . . Disarmed . | . . . . Reprogrammed . | . . . . Reused . | . . . . Traps Extracted . | . . . . Installed . | . . . . Triggered . | . . . . Machines | -11 -10 -10 -10 ---------- Run | Yrd Mat Min Sub Machines Disabled 2 | . . . 2 Max in Single Turn 1 | . . . 1 Machines Repaired . | . . . . Machines Dismantled . | . . . . Machines Sabotaged . | . . . . Overloaded Fab Kills . | . . . . Hacking | -11 -10 -10 -10 --------- Run | Yrd Mat Min Sub Machines Accessed 2 | . 1 . 1 Terminals 1 | . 1 . . Fabricators . | . . . . Repair Stations . | . . . . Recycling Units . | . . . . Scanalyzers . | . . . . Garrison Access . | . . . . Total Hacks 11 | . 2 . 9 Successful 9 | . . . 9 Failed 2 | . 2 . . Catastrophic 2 | . 2 . . Database Lockouts . | . . . . Manual 4 | . 2 . 2 Terminals 2 | . 2 . . Fabricators . | . . . . Repair Stations . | . . . . Recycling Units . | . . . . Scanalyzers . | . . . . Garrison Access . | . . . . Terminal Hacks 9 | . . . 9 Record 8 | . . . 8 Derelict Proto ID Bank 1 | . . . 1 Fabricator Hacks . | . . . . Repair Station Hacks . | . . . . Recycling Unit Hacks . | . . . . Scanalyzer . | . . . . Garrison Access Hacks . | . . . . Unauthorized Hacks . | . . . . Terminals . | . . . . Fabricators . | . . . . Repair Stations . | . . . . Recycling Units . | . . . . Scanalyzers . | . . . . Garrison Access . | . . . . Data Cores Recovered . | . . . . Used . | . . . . Hacking Detections 1 | . 1 . . Full Trace Events 1 | . 1 . . Feedback Events . | . . . . Feedback Blocked . | . . . . Robot Schematics Acquired . | . . . . Robots Built . | . . . . Authchips . | . . . . Time . | . . . . Total Robot Build Rating . | . . . . Part Schematics Acquired . | . . . . Parts Built . | . . . . Authchips . | . . . . Time . | . . . . Total Part Build Rating . | . . . . Parts Repaired . | . . . . Time . | . . . . Parts Recycled . | . . . . Recycled Matter . | . . . . Retrieved Matter . | . . . . Retrieved Components . | . . . . Parts Scanalyzed . | . . . . Part Schematics Acquired . | . . . . Parts Damaged . | . . . . Bothacking | -11 -10 -10 -10 ------------ Run | Yrd Mat Min Sub Used RIF Installer . | . . . . Robots Hacked . | . . . . Non-combat . | . . . . Combat . | . . . . Robot Hacks Applied . | . . . . Relay Couplers Released . | . . . . Fabnet Peak Effective % . | . . . . Robots Rewired . | . . . . Allies Hacked . | . . . . Hacks Repelled . | . . . . Allies | -11 -10 -10 -10 -------- Run | Yrd Mat Min Sub Total Allies . | . . . . Largest Group . | . . . . Highest-Rated Group . | . . . . Highest-Rated Ally . | . . . . Total Orders . | . . . . Ally Attacks . | . . . . Total Damage . | . . . . Kills . | . . . . Allies Corrupted . | . . . . Allies Melted . | . . . . Intel | -11 -10 -10 -10 ------- Run | Yrd Mat Min Sub Robot Analysis Total . | . . . . Derelict Logs Recovered . | . . . . Drone Launches . | . . . . Drone Recoveries . | . . . . Exploration | -11 -10 -10 -10 ------------- Run | Yrd Mat Min Sub Turns Passed 1891 | 89 91 394 1317 Spaces Moved 973 | 53 55 230 635 Core 5 | 5 . . . Treads 959 | 48 55 230 626 Legs . | . . . . Wheels 9 | . . . 9 Hover . | . . . . Flight . | . . . . Fastest Speed 50 | 50 160 160 110 Average Speed 172 | 149 160 160 180 Slowest Speed 240 | 160 160 160 240 Overloaded Moves . | . . . . Propulsion Burnouts . | . . . . Robots Hopped . | . . . . Cave-ins Triggered . | . . . . Exploration Rate (%) 26 | 4 16 53 34 Regions Visited 3 Branch Regions 2 Pre-discovered Areas . | . . . . Known Exits Taken . | . . . . Unknown Exits Taken 3 | 1 1 1 . Scrap Searched 7 | . . 2 5 Spaces Dug . | . . . . Terrain Destroyed 5 | . . 5 . Melee . | . . . . Projectile . | . . . . AOE 5 | . . 5 . Terrain Rammed . | . . . . Walls Destroyed . | . . . . Machines Disabled . | . . . . Actions | -11 -10 -10 -10 --------- Run | Yrd Mat Min Sub Total 1074 | 59 57 238 720 Wait 16 | . . . 16 Move 970 | 52 54 229 635 Hop . | . . . . Pick Up 2 | . . . 2 Fast Attach 12 | 6 1 . 5 Attach 4 | . . . 4 Detach 6 | . 1 . 5 Swap 3 | 1 . . 2 Drop 1 | . . . 1 Fire 60 | . 1 9 50 Melee . | . . . . Ram . | . . . . Kick . | . . . . Crush . | . . . . Escape Stasis . | . . . . Rewire . | . . . . Trap . | . . . . Miscellaneous . | . . . . Route ------- -11/Scrapyard -10/Materials -10/Mines -10/Subcaves History --------- Turn | Location | Event 10 | -11/Scrapyard | Discovered new exit (range 16) 90 | -11/Scrapyard | Entered Materials 171 | -10/Materials | Discovered new exit (range 6) 181 | -10/Materials | Entered Mines 306 | -10/Mines | Build established: Mutant 543 | -10/Mines | Discovered new exit (range 9) 554 | -10/Mines | Found a hidden stash of uninstalled traps 575 | -10/Mines | Entered Subcaves 965 | -10/Subcaves | Visited 4L-MR0's lab 1310 | -10/Subcaves | Shifting Twisted Machinery released Sub. Shrapnel Launcher 1312 | -10/Subcaves | Shifting Twisted Machinery released Mak. Laser 1409 | -10/Subcaves | Core integrity fell below 50% 1886 | -10/Subcaves | Core integrity fell below 20% 1892 | -10/Subcaves | Destroyed by A1-56N(R) with Subdweller Shrapnel Launcher Last Messages --------------- 01532_ Found 11 Matter. 01533_ Acquired 11 matter. 01537_ Searching scrap... 01537_ Found Battle Cannon. 01537_ Found 33 Matter. 01538_ Acquired 33 matter. 01547_ Searching scrap... 01547_ Found Scrap Shield. 01547_ Found Humpback. 01547_ Found 37 Matter. 01548_ Acquired 25 matter. 01566_ Searching scrap... 01566_ Found Mak. Light Armor Plating. 01566_ Found Sub. Power Source. 01566_ Found 39 Matter. 01604_ Acquired Wheel. 01615_ Acquired 20 matter. 01886_ Lgt. Treads destroyed. 01890_ Mak. Laser destroyed. 01892_ Sub. Machine Gun destroyed. Map ----- +----------------------------------------------------+ | ?????????????????????????????????????????????????? | | ?????????????????????????????????????????????????? | | ?????????????????????????????????????????????????? | | ?????????????????????????????????????????????????? | | ?????????????????????????????????????????????????? | | ?????????????????????????????????????????????????? | | ?????????????????????????????????????????????????? | | ?????????????????????????????????????????????????? | | ?????????????????????????????????????????????????? | | ?????????????????????????????????????????????????? | | ?????????????????????????????????????????????????? | | ?????????????????????????????????????????????????? | | ?????????????????????????????????????????????????? | | ?????????????????????????????????????????????????? | | ??????????????# ????????????????#????????????????? | | ?????????????? ?????????????? #????????????????? | | ????????????? ""?????????? #????????????????? | | ?????????????? """"???????? ????????????????? | | ???????????????# """#?????? ?????????????????? | | ???????????????# "RR#????? ??????????????????? | | ???????????????# ###? ???????????????????? | | ???????????????# ;## ????????????????????? | | ???????????????# ;;##???????????????????? | | ???????????????# ; #???????????????????? | | ???????????????# # #;;;;##??? #???????? | | ???????????????# ;; @ # #??????? | | ???????????????# #; #??????? | | ????????????????????## ; #??????????? | | ?????????????????????# ;;;### # ?????????? | | ?????????????????????# ; ##???????????????? | | ?????????????????????# ;; ###????????????????? | | ?????????????????????### #?????????????????? | | ??????????????????????# # #?????????????????? | | ??????????????????????# #?<<## #?????????????????? | | ??????????????????????# ??$$<# ##????????????????? | | ??????????????????????# ??$$<# ##???????????????? | | ??????????????????????# ??<<## #???????????????? | | #????????????######???# #### #???????????????? | | ##???????????# ##??## ##???????????????? | | %#??????????## ##??###### #????????????????? | | ##?######?### ####????## #????????????????? | | #### #?# ## #????## ###?#????????????? | | # #### #????# # # ##???????????? | | ###?# #????## ###?????????? | | ##???# ## ##????# #?????????? | | ##?????????# ###??# ### ###?????????? | | ##?????????## #??# #???##???????????? | | ##??????????# #### #????????????????? | | ###?????????## ## ## #????????????????? | | ##?????????# ## ## ####?????????????? | +----------------------------------------------------+ Best States ------------- Heat Dissipation 25 Coolant Potential 50 Energy Generation 10 Energy Capacity 250 Matter Stores 300 Matter Capacity 300 Sight Range 16 Terrain Scan Density 10 Evasion (%) 40 Recoil Reduction 2 Item Schematics ----------------- None Robot Schematics ------------------ None Fabricated ------------ Nothing Alien Tech Used ----------------- None Achievements -------------- Backstab Challenges ------------ None Game ------ Seed AngularImprovedLink Manual? 0 Play Time 00:15:44 Cumulative 20.2 hours Start 2024.04.05 @ 14:29:20 End 2024.04.05 @ 14:44:32 Sessions 1 Manual Loads 0 Difficulty Rogue Special Mode None Game No. 53 Rogue 51 Adventurer 2 Explorer 0 Win Type - Total 0 Types 0/0/0/0/0/0/0/0/0 Lore% 18 Gallery% 23 Achievement% 21 Wizard Run 0 Options --------- Layout 1 ASCII 0 Keyboard 1 Movement Arrows Keybinds 0 Fullscreen 2 Font 24/Smallcaps Map View 50x35 Zoom Use 0% Tactical HUD 1 Map Filters NONE Filters NONE Steam 1 RUN: 75815be7-0775-485e-a79f-8b8a6507ed18